Cogmind - Beta 15 @@@ ROGUE MODE // 2025.08.05 @ 21:29:08 Player: Btuck Result: Destroyed by G-47 Trooper with Particle Gun Performance ------------- Evolutions (0) 0 Regions Visited (2) 400 Robots Destroyed (22) 110 Value Destroyed (398) 398 Prototype IDs (4) 80 Alien Tech Used (0) 0 Bonus (0) 0 TOTAL SCORE: 988 Bonus ------- None Cogmind --------- Core Integrity 0/250 Matter 276/300 Energy 100/100 System Corruption 0% Temperature Cool (15) Movement Walking (260) Ox2 Location -10/Mines Parts ------- > --- POWER (1) -------- (None) > --- PROPULSION (2) --- Carbon-fiber Leg > --- UTILITY (2) ------ High-capacity Storage Unit > --- WEAPON (2) ------- Light Assault Rifle > --- INVENTORY (20) --- Light Ion Engine Light Treads Light Treads Light Treads Light Treads Compact Wheel Improved Heat Sink Small Storage Unit Structural Scanner Light Armor Plating Light Armor Plating Light Assault Rifle Hammer Peak State ------------ > --- POWER ------------ Ion Engine > --- PROPULSION ------- Light Treads Light Treads > --- UTILITY ---------- High-capacity Storage Unit Seismic Detector > --- WEAPON ----------- Medium Laser Assault Rifle > --- INVENTORY -------- Light Ion Engine Light Treads Light Treads Compact Wheel Small Storage Unit Structural Scanner Light Armor Plating Light Armor Plating Light Assault Rifle Hammer [Rating: 8] Favorites ----------- Power Ion Engine Engine Ion Engine Propulsion Light Treads Treads Light Treads Leg Carbon-fiber Leg Utility Seismic Detector Device Seismic Detector Storage High-capacity Storage Unit Weapon Medium Laser Energy Gun Medium Laser Ballistic Gun Assault Rifle Build | -11 -10 -10 ------- Run | Yrd Mat Min Slots Evolved . | . . . Power . | . . . Propulsion . | . . . Utility . | . . . Weapon . | . . . Parts Attached 12 | 8 2 2 Power 2 | 2 . . Engine 2 | 2 . . Core . | . . . Reactor . | . . . Propulsion 3 | 2 . 1 Treads 2 | 2 . . Leg 1 | . . 1 Wheel . | . . . Hover . | . . . Flight . | . . . Utility 3 | 2 1 . Device 1 | 1 . . Storage 2 | 1 1 . Processor . | . . . Hackware . | . . . Protection . | . . . Artifact . | . . . Weapon 4 | 2 1 1 Energy Gun 1 | 1 . . Energy Cannon . | . . . Ballistic Gun 3 | 1 1 1 Ballistic Cannon . | . . . Launcher . | . . . Special Weapon . | . . . Impact Weapon . | . . . Slashing Weapon . | . . . Piercing Weapon . | . . . Special Melee Weapon . | . . . Unidentified Prototypes . | . . . Parts Lost 4 | . . 4 Power 1 | . . 1 Propulsion . | . . . Utility 1 | . . 1 Weapon 2 | . . 2 Highest Loss Streak 4 | . . 4 To Critical Strikes . | . . . Average Backups 5 | . 5 10 Power . | . 1 1 Propulsion . | . . 3 Utility 2 | . 2 4 Weapon . | . . 1 Tool/Special . | . . . Unused Backups 7 | . . 7 Power . | . . . Propulsion 3 | . . 3 Utility 3 | . . 3 Weapon 1 | . . 1 Tool/Special . | . . . Average Slot Usage (%) 97 | . 100 87 Engine 13 | . 14 12 Treads 26 | . 28 22 Device 13 | . 14 11 Storage 14 | . 14 14 Energy Gun 13 | . 14 11 Ballistic Gun 13 | . 14 12 Peak Build Rating 8 | 7 7 8 Average Rating 6 | 5 7 7 On Entrance 4 | . 7 7 Naked Turns . | . . . Heaviest Build 50 | 14 50 50 Greatest Support 40 | 40 40 40 Greatest Overweight (x) 16 | . 1 16 Average Overweight (x) . | . . 1 Largest Inventory Capacity 20 | 8 20 20 Average Capacity 17 | 7 18 20 Most Carried 13 | 1 8 13 Average Carried 5 | . 5 10 Final Capacity 20 | 8 20 20 Final Carried 13 | 1 8 13 Class Distribution -------------------- 100% | Mutant Dominant Class ---------------- Mutant | -10/Materials Mutant | -10/Mines Resources | -11 -10 -10 ----------- Run | Yrd Mat Min Matter Collected 459 | 282 161 16 Remotely . | . . . Salvage Created 702 | 118 462 122 Parts 48 | 5 35 8 Haulers Intercepted 1 | . 1 . Recyclers Shooed . | . . . Parts Field Recycled . | . . . Retrieved Matter . | . . . Parts Self-Destructed . | . . . Prevented . | . . . Kills | -11 -10 -10 ------- Run | Yrd Mat Min Combat Hostiles Destroyed 15 | . 13 2 Guns 15 | . 13 2 Classes Destroyed 7 | 2 4 1 Worker 1 | . . 1 Tunneler 1 | 1 . . Hauler 1 | . 1 . Recycler 2 | 1 . 1 Watcher 2 | . 2 . Swarmer 8 | . 6 2 Grunt 7 | . 7 . Best Kill Streak 4 | 2 3 4 Combat Bots Only 3 | . 3 2 Max Kills in Single Turn 2 | 1 2 1 Gunslinging 1 | . 1 . Exploded . | . . . Melee . | . . . Uniques/NPCs Destroyed . | . . . Combat | -11 -10 -10 -------- Run | Yrd Mat Min Hostile Shots Fired 101 | . 66 35 Missed 28 | . 16 12 Hits 73 | . 50 23 Projectile 73 | . 50 23 Critical Strikes 3 | . 1 2 Damage Taken 828 | . 528 300 Core 255 | . 136 119 Absorbed by Shields . | . . . Core Remaining (%) 100 | 100 . . Volleys Fired 60 | 2 47 11 Largest 2 | 2 2 2 Hottest 70 | 70 70 70 Shots Fired 116 | 4 94 18 Gun 116 | 4 94 18 Cannon . | . . . Launcher . | . . . Special . | . . . Kinetic 60 | 2 47 11 Thermal 56 | 2 47 7 Explosive . | . . . Electromagnetic . | . . . Robot Hit Streak 12 | 3 12 3 Robot Miss Streak 5 | . 5 3 Penetration Max . | . . . Secondary Targets 2 | . 2 . Max Gunslinging Chain 1 | . 1 . Shots Hit Robots 75 | 3 63 9 Core Hits 38 | 3 29 6 Critical Kills . | . . . Critical Parts Destroyed . | . . . Critical Strikes 2 | . 2 . Burn 2 | . 2 . Melee Attacks . | . . . Impact . | . . . Slashing . | . . . Piercing . | . . . Sneak Attacks . | . . . Combat Hostiles . | . . . Follow-up Attacks . | . . . Damage Inflicted 921 | 32 786 103 Guns 921 | 32 786 103 Cannons . | . . . Explosions . | . . . Melee . | . . . Ramming . | . . . Kinetic 450 | 7 380 63 Thermal 471 | 25 406 40 Explosive . | . . . Electromagnetic . | . . . Impact . | . . . Slashing . | . . . Piercing . | . . . Highest Corruption . | . . . Average Corruption . | . . . Corruption Purged . | . . . Corruption Blocked . | . . . Overload Shots . | . . . Overflow Damage . | . . . Projectiles . | . . . Explosions . | . . . Melee . | . . . Knockbacks . | . . . Impact . | . . . Kinetic . | . . . Secondary . | . . . Self-Inflicted Damage . | . . . Shots . | . . . Rammed . | . . . Targets Rammed . | . . . Kicked . | . . . Crushed . | . . . Highest Temperature 138 | 30 138 36 Average Temperature 30 | 18 32 14 Received Heat Transfer 393 | . 210 183 Siege Activations . | . . . Martial Activations . | . . . Shielding Activations . | . . . Robots Disrupted . | . . . Combat Hostiles . | . . . Robots Corrupted . | . . . Combat Hostiles . | . . . Parts Fried . | . . . Impact Corruptions . | . . . Robots Melted . | . . . Combat Hostiles . | . . . Parts Melted 2 | . 1 1 Heat Transferred 1517 | 74 1332 111 Parts Sabotaged . | . . . Parts Stolen . | . . . Parts Stripped . | . . . Power Chain Reactions . | . . . Alert | -11 -10 -10 ------- Run | Yrd Mat Min Maximum Alert Level . | . . . Low Security (%) 100 | 100 100 100 Level 1 . | . . . Level 2 . | . . . Level 3 . | . . . Level 4 . | . . . Level 5 . | . . . High Security . | . . . Max Security . | . . . Peak Influence 109 | 5 109 50 Initial 21 | . . 21 Average 41 | . 56 10 Influence Increases 451 | 10 381 60 Destroy 0b10 Robot/C 300 | . 260 40 Destroy 0b10 Robot/NC 35 | 10 15 10 Destroy Leader 66 | . 56 10 Successful Hack 33 | . 33 . Destroy Structure 2 | . 2 . Lose Combat Pursuer 15 | . 15 . Influence Decreases 451 | 10 326 115 Entered New Map 34 | . . 34 Time Decay 377 | 10 326 41 Lost Part 40 | . . 40 Squads Dispatched 2 | . 2 . Investigation 1 | . 1 . Extermination . | . . . Reinforcement 1 | . 1 . Assault . | . . . Garrison . | . . . Intercept . | . . . Searches Triggered . | . . . Construction Impeded . | . . . Haulers Reinforced . | . . . Active Scanning Responses . | . . . Cargo Convoy Interrupts . | . . . Stealth | -11 -10 -10 --------- Run | Yrd Mat Min Distress Signals 1 | . 1 . Communications Jammed . | . . . Distress Signals . | . . . Times Spotted 23 | . 19 4 Peak Tracking Total 4 | . 4 2 Tactical Retreats 1 | . 1 . Traps | -11 -10 -10 ------- Run | Yrd Mat Min Traps Triggered . | . . . Indirectly . | . . . Trap Hack Attempts . | . . . Triggered . | . . . Disarmed . | . . . Reprogrammed . | . . . Reused . | . . . Traps Extracted . | . . . Installed . | . . . Triggered . | . . . Machines | -11 -10 -10 ---------- Run | Yrd Mat Min Machines Disabled . | . . . Max in Single Turn . | . . . Machines Repaired . | . . . Machines Dismantled . | . . . Machines Sabotaged . | . . . Overloaded Fab Kills . | . . . Hacking | -11 -10 -10 --------- Run | Yrd Mat Min Machines Accessed 5 | . 5 . Terminals 5 | . 5 . Fabricators . | . . . Repair Stations . | . . . Recycling Units . | . . . Scanalyzers . | . . . Garrison Access . | . . . Total Hacks 16 | . 16 . Successful 9 | . 9 . Failed 7 | . 7 . Catastrophic . | . . . Database Lockouts . | . . . Manual 12 | . 12 . Terminals 16 | . 16 . Fabricators . | . . . Repair Stations . | . . . Recycling Units . | . . . Scanalyzers . | . . . Garrison Access . | . . . Terminal Hacks 8 | . 8 . Robot Analysis 4 | . 4 . Prototype ID Bank 2 | . 2 . Locate Traps 1 | . 1 . Hauler Manifests 1 | . 1 . Fabricator Hacks . | . . . Repair Station Hacks . | . . . Recycling Unit Hacks . | . . . Scanalyzer . | . . . Garrison Access Hacks . | . . . Unauthorized Hacks 1 | . 1 . Terminals 1 | . 1 . Botnet 1 | . 1 . Fabricators . | . . . Repair Stations . | . . . Recycling Units . | . . . Scanalyzers . | . . . Garrison Access . | . . . Data Cores Recovered . | . . . Used . | . . . Hacking Detections 5 | . 5 . Full Trace Events 1 | . 1 . Feedback Events . | . . . Feedback Blocked . | . . . Robot Schematics Acquired . | . . . Robots Built . | . . . Authchips . | . . . Time . | . . . Total Robot Build Rating . | . . . Part Schematics Acquired . | . . . Parts Built . | . . . Authchips . | . . . Time . | . . . Total Part Build Rating . | . . . Parts Repaired . | . . . Time . | . . . Parts Recycled . | . . . Recycled Matter . | . . . Retrieved Matter . | . . . Retrieved Components . | . . . Parts Scanalyzed . | . . . Part Schematics Acquired . | . . . Parts Damaged . | . . . Bothacking | -11 -10 -10 ------------ Run | Yrd Mat Min Used RIF Installer . | . . . Robots Hacked . | . . . Non-combat . | . . . Combat . | . . . Robot Hacks Applied . | . . . Relay Couplers Released . | . . . Fabnet Peak Effective % . | . . . Robots Rewired . | . . . Allies Hacked . | . . . Hacks Repelled . | . . . Allies | -11 -10 -10 -------- Run | Yrd Mat Min Total Allies . | . . . Largest Group . | . . . Highest-Rated Group . | . . . Highest-Rated Ally . | . . . Total Orders . | . . . Ally Attacks . | . . . Total Damage . | . . . Kills . | . . . Allies Corrupted . | . . . Allies Melted . | . . . Intel | -11 -10 -10 ------- Run | Yrd Mat Min Active Infowar (turns) 1070 | 102 814 154 Seismic 1070 | 102 814 154 Robot Analysis Total 4 | . 4 . Derelict Logs Recovered . | . . . Drone Launches . | . . . Drone Recoveries . | . . . Exploration | -11 -10 -10 ------------- Run | Yrd Mat Min Turns Passed 1162 | 162 814 186 Spaces Moved 439 | 100 284 55 Core 16 | 13 . 3 Treads 422 | 87 284 51 Legs 1 | . . 1 Wheels . | . . . Hover . | . . . Flight . | . . . Fastest Speed 50 | 50 160 240 Average Speed 213 | 145 226 270 Slowest Speed 850 | 160 240 850 Overloaded Moves . | . . . Propulsion Burnouts . | . . . Robots Hopped . | . . . Potential Cave-ins . | . . . Cave-ins Triggered . | . . . Exploration Rate (%) 27 | 8 62 13 Regions Visited 2 Branch Regions 1 Pre-discovered Areas . | . . . Known Exits Taken . | . . . Unknown Exits Taken 2 | 1 1 . Scrap Searched 1 | . . 1 Spaces Dug . | . . . Terrain Destroyed . | . . . Melee . | . . . Projectile . | . . . AOE . | . . . Terrain Rammed . | . . . Walls Destroyed . | . . . Machines Disabled . | . . . Actions | -11 -10 -10 --------- Run | Yrd Mat Min Total 545 | 109 361 75 Wait 26 | . 24 2 Move 437 | 99 283 55 Hop . | . . . Pick Up 8 | . 5 3 Fast Attach 9 | 7 . 2 Attach . | . . . Detach 2 | . . 2 Swap 3 | 1 2 . Drop . | . . . Fire 60 | 2 47 11 Melee . | . . . Ram . | . . . Kick . | . . . Crush . | . . . Escape Stasis . | . . . Rewire . | . . . Trap . | . . . Miscellaneous . | . . . Route ------- -11/Scrapyard -10/Materials (discovered 5 exits: [*Mat x2] / [*Min x2] / [*Sub]) -10/Mines History --------- Turn | Location | Event 2 | -11/Scrapyard | Met Revision 17 3 | -11/Scrapyard | Discovered new exit (range 16) 163 | -11/Scrapyard | Entered Materials 300 | -10/Materials | Discovered new exit (range 16) 303 | -10/Materials | Build established: Mutant 595 | -10/Materials | Discovered new exit (range 16) 637 | -10/Materials | Core integrity fell below 50% 883 | -10/Materials | Discovered new exit (range 9) 927 | -10/Materials | Discovered new exit (range 6) 932 | -10/Materials | Discovered new exit (range 10) 977 | -10/Materials | Entered Mines 985 | -10/Mines | Met a Derelict bent on vengeance 1157 | -10/Mines | Core integrity fell below 20% 1163 | -10/Mines | Destroyed by G-47 Trooper with Particle Gun Last Messages --------------- 01115_ R-06 Scavenger collects Lgt. Angular Momentum Engine. 01116_ K-01 Serf collects debris. 01116_ Acquired Imp. Heat Sink. 01119_ R-06 Scavenger collects Carbon-fiber Leg. 01120_ R-06 Scavenger destroyed. 01121_ K-01 Serf collects debris. 01123_ K-01 Serf destroyed. 01131_ Seismic Detector destroyed. 01135_ Acquired 1 matter. 01139_ Med. Laser destroyed. 01139_ Critical hit (Burn: +37). 01139_ Assault Rifle destroyed. 01141_ Ion Engine destroyed. 01145_ K-01 Serf collects debris. 01151_ Acquired Carbon-fiber Leg. 01152_ K-01 Serf collects debris. 01155_ Acquired Lgt. Assault Rifle. 01156_ K-01 Serf collects debris. 01159_ Critical hit (Burn: +37). Map ----- +----------------------------------------------------+ | | | ?????????????????????????????????????????????????? | | ?????????????????????????????????????????????????? | | ?????????????????????????????????????????????????? | | ?????????????????????????????????????????????????? | | ?????????????????????????????????????????????????? | | ?????????????????????????????????????????????????? | | ?????????????????????????????????????????????????? | | ?????????????????????????????????????????????????? | | ?????????????????????????????????????????????????? | | ?????????????????????????????????????????????????? | | ?????????????????????????????????????????????????? | | ?????????????????????????????????????????????????? | | ?????????????????????????????????????????????????? | | ?????????????????????????????????????????????????? | | ?????????????????????????????????????????????????? | | ?????????????????????????????????????????????????? | | ?????????????????????????????????????????????????? | | ?????????????????????????????????????????????????? | | ?????????????????????????????????????????????????? | | ????????????#????????????????????????????????????? | | ???????????## ??????????????????????????????????? | | ?????????? % ????????????????????????????????? | | ?????????? =%= ??????????????????????????????? | | ????????? =% g ###########?????????????????? | | ?????????? r g!*%@= #?????????????????? | | ?????????????????## t=% ! #?????????????????? | | ??????????????????############ #?????????????????? | | ?????????????????????????????# #?????????????????? | | ?????????????????????????????# #########?????????? | | ?????????????????????????????# #?????????? | | ?????????????????????????????######### #?????????? | | ????????????????????????????????????## ###???????? | | ???????????????????????????????????## ##??????? | | ???????????????????????????????????# #??????? | | ???????????????????????????????????# #??????? | | ???????????????????????????????????## #??????? | | ????????????????????????????????????##### #??????? | | ????????????????????????????????????????# #??????? | | ????????????????????????????????????????# #??????? | | ????????????????????????????????????????# #??????? | | ????????????????????????????????????????# #??????? | | ????????????????????????????????????????# #??????? | | ????????????????????????????????????????# #####??? | | ????????????????????????????????????????# #??? | | ???????????????????????????????#####????##### #??? | | ??????????????????????????????# ####### #??? | | ??????????????????????????????# ##?? | | ??????????????????????????????# #?? | | ??????????????????????????????# """ #### ! !#?? | +----------------------------------------------------+ Best States ------------- Heat Dissipation 25 Energy Generation 10 Energy Capacity 250 Matter Stores 300 Matter Capacity 300 Sight Range 16 Terrain Scan Density 10 Evasion (%) 50 Recoil Reduction 2 Item Schematics ----------------- None Robot Schematics ------------------ None Fabricated ------------ Nothing Repaired ---------- Nothing Alien Tech Used ----------------- None Achievements -------------- None Challenges ------------ None Game ------ Seed EtherialJunkSuperbattery Manual? 0 Play Time 00:08:32 Cumulative 87.7 hours Start 2025.08.05 @ 21:21:43 End 2025.08.05 @ 21:29:08 Sessions 1 Manual Loads 0 Difficulty Rogue Special Mode None Game No. 116 Rogue 116 Adventurer 0 Explorer 0 Win Type - Total 1 Types 1/0/0/0/0/0/0/0/0/0 Lore% 46 Gallery% 44 Achievement% 41 Wizard Run 0 Options --------- Layout 2 ASCII 0 Keyboard 1 Movement Numpad Keybinds 0 Fullscreen 1 Font 32/Tamsyn Map View 50x44 Zoom Use 0% Tactical HUD 1 Map Filters NONE Filters NONE Steam 1 RUN: 0203bebf-2986-4c13-97d0-8fff0276bbf7